[Event "FIDE Online Quarter final-2020"]
[Site "Online"]
[Date "2020.08.29"]
[Round "4.2"]
[White "Wang, Annie"]
[Black "Shpanko, Nadiia"]
[Result "1-0"]
[ECO "D38"]
[WhiteElo "2287"]
[BlackElo "2183"]
[Annotator "ChessBase"]
[PlyCount "107"]
[EventDate "2020.08.28"]
[EventType "k.o."]
[SourceTitle "playchess.com"]
[Source "ChessBase"]
[SourceQuality "1"]
[TimeControl "900+5"]

1. d4 {[%emt 0:00:01]} Nf6 {[%emt 0:00:01]} 2. c4 {[%emt 0:00:01]} e6 {[%emt 0:00:03]} 3. Nf3 {[%emt 0:00:10]} d5 {[%emt 0:00:02]} 4. Nc3 {[%emt 0:00:03]} Bb4 {[%emt 0:00:02]} 5. Bg5 {[%emt 0:00:03]} h6 {[%emt 0:00:20]} 6. Bxf6 {[%emt 0:00:02]} Qxf6 {[%emt 0:00:01]} 7. e3 {[%emt 0:00:04]} O-O {[%emt 0:00:04]} 8. Rc1 {[%emt 0:00:01]} c6 {[%emt 0:01:55]} 9. Be2 {[%emt 0:00:15]} Nd7 {[%emt 0:00:11]} 10. O-O {[%emt 0:00:03]} dxc4 {[%emt 0:00:17]} 11. Bxc4 {[%emt 0:00:03]} e5 {[%emt 0:00:08]} 12. Ne4 {[%emt 0:00:42]} Qg6 {[%emt 0:00:43]} 13. Bd3 {[%emt 0:01:22]} exd4 {[%emt 0:00:30]} 14. Nxd4 {[%emt 0:00:32]} Ne5 {[%emt 0:00:15]} 15. Bb1 {[%emt 0:00:04]} Qg4 {[%emt 0:01:04]} 16. Qxg4 {[%emt 0:00:46]} Bxg4 {[%emt 0:00:07]} 17. h3 {[%emt 0:00:21]} Bd7 {[%emt 0:00:56]} 18. Nc5 {[%emt 0:01:18]} Bxc5 {[%emt 0:01:07]} 19. Rxc5 {[%emt 0:00:02]} Rfe8 {[%emt 0:00:08]} 20. Rd1 {[%emt 0:00:33]} b6 {[%emt 0:00:13]} 21. Rcc1 {[%emt 0:00:03]} c5 {[%emt 0:00:02]} 22. Nf5 {[%emt 0:00:09]} Red8 {[%emt 0:02:00]} 23. f4 {[%emt 0:02:15]} Nc6 {[%emt 0:01:11]} 24. Nd6 {[%emt 0:00:39]} Rab8 {[%emt 0:00:35]} 25. Be4 {[%emt 0:00:29]} Kf8 {[%emt 0:00:19]} 26. Rd2 {[%emt 0:00:08]} Na5 {[%emt 0:00:58]} 27. Rcd1 {[%emt 0:00:57]} Bc6 {[%emt 0:00:29]} 28. Bc2 {[%emt 0:00:38]} Nb7 {[%emt 0:00:14]} 29. e4 {[%emt 0:00:23]} Nxd6 {[%emt 0:00:16]} 30. Rxd6 {[%emt 0:00:02]} Rxd6 {[%emt 0:00:02]} 31. Rxd6 {[%emt 0:00:01]} Be8 {[%emt 0:00:21]} 32. Kf2 {[%emt 0:00:49]} Ke7 {[%emt 0:00:03]} 33. Rd2 {[%emt 0:00:22]} Rd8 {[%emt 0:00:12]} 34. Rxd8 {[%emt 0:00:10]} Kxd8 {[%emt 0:00:00]} 35. e5 {[%emt 0:00:00]} Bc6 {[%emt 0:00:07]} 36. g4 {[%emt 0:00:05]} Bd5 {[%emt 0:00:12]} 37. b3 {[%emt 0:00:04]} f6 {[%emt 0:00:14]} 38. exf6 {[%emt 0:00:12]} gxf6 {[%emt 0:00:02]} 39. Ke3 {[%emt 0:00:04]} Ke7 {[%emt 0:00:10]} 40. h4 {[%emt 0:00:17]} Kd6 {[%emt 0:00:41]} 41. Bd3 {[%emt 0:00:45]} Be6 {[%emt 0:00:09]} 42. f5 {[%emt 0:00:06]} Bd5 {[%emt 0:00:46]} 43. Kf4 {[%emt 0:00:03]} Ke7 {[%emt 0:00:59]} 44. g5 {[%emt 0:00:23]} hxg5+ {[%emt 0:00:03]} 45. hxg5 {[%emt 0:00:01]} a5 {[%emt 0:00:09]} 46. g6 {[%emt 0:00:18]} a4 {[%emt 0:00:03]} 47. Bc4 {[%emt 0:00:36]} axb3 {[%emt 0:00:12]} 48. Bxd5 {[%emt 0:00:16]} b2 {[%emt 0:00:02]} 49. Be4 {[%emt 0:00:01]} c4 {[%emt 0:00:02]} 50. Ke3 {[%emt 0:00:09]} c3 {[%emt 0:00:09]} 51. Bc2 {[%emt 0:00:03]} b5 {[%emt 0:00:03]} 52. a3 {[%emt 0:00:04]} Kf8 {[%emt 0:00:09]} 53. Kd3 {[%emt 0:00:02]} Kg7 {[%emt 0:00:01]} 54. Kxc3 {[%emt 0:00:00]} 1-0

[Event "FIDE Online Quarter final-2020"]
[Site "Online"]
[Date "2020.08.28"]
[Round "4.2"]
[White "Abrahamyan, Tatev"]
[Black "Gaponenko, Inna"]
[Result "0-1"]
[ECO "B79"]
[WhiteElo "2245"]
[BlackElo "2330"]
[Annotator "NA"]
[PlyCount "98"]
[EventDate "2020.08.28"]
[EventType "k.o."]
[SourceTitle "playchess.com"]
[Source "ChessBase"]
[SourceQuality "1"]
[TimeControl "900+5"]

1. e4 {[%emt 0:00:01]} c5 {[%emt 0:00:02]} 2. Nf3 {[%emt 0:00:02]} Nc6 {[%emt 0:00:02]} 3. d4 {[%emt 0:00:04]} cxd4 {[%emt 0:00:02]} 4. Nxd4 {[%emt 0:00:02]} g6 {[%emt 0:00:02]} 5. Nc3 {[%emt 0:00:12]} Bg7 {[%emt 0:00:03]} 6. Be3 {[%emt 0:00:01]} Nf6 {[%emt 0:00:01]} 7. Bc4 {[%emt 0:00:05]} O-O {[%emt 0:00:03]} 8. Bb3 {[%emt 0:00:02]} d6 {[%emt 0:00:01]} 9. f3 {[%emt 0:00:03]} Bd7 {[%emt 0:00:02]} 10. h4 {[%emt 0:00:01]} Qa5 {[%emt 0:00:04]} 11. Qd2 {[%emt 0:01:05]} Rfc8 {[%emt 0:00:03]} 12. h5 {[%emt 0:01:36]} Nxh5 {[%emt 0:00:05]} 13. g4 {[%emt 0:00:05]} Nf6 {[%emt 0:00:02]} 14. O-O-O {[%emt 0:00:02]} Ne5 {[%emt 0:00:04]} 15. Bh6 {[%emt 0:02:48]} Bxh6 {[%emt 0:00:20]} 16. Rxh6 {[%emt 0:00:40]} Rxc3 {[%emt 0:00:04]} 17. Qxc3 {[%emt 0:00:40]} Qxc3 {[%emt 0:00:03]} 18. bxc3 {[%emt 0:00:00]} Rc8 {[%emt 0:02:32]} 19. Kb2 {[%emt 0:00:05]} Kg7 {[%emt 0:00:59]} 20. Rh2 {[%emt 0:00:12]} a5 {[%emt 0:01:07]} 21. a4 {[%emt 0:00:45]} Be8 {[%emt 0:01:24]} 22. g5 {[%emt 0:00:54]} Nh5 {[%emt 0:00:04]} 23. Rdh1 {[%emt 0:00:41]} Bd7 {[%emt 0:02:25]} 24. Rh4 {[%emt 0:01:34]} Nc4+ {[%emt 0:02:55]} 25. Kc1 {[%emt 0:00:33]} Ne5 {[%emt 0:00:48]} 26. f4 {[%emt 0:00:24]} Ng4 {[%emt 0:00:08]} 27. f5 {[%emt 0:01:45]} Ne5 {[%emt 0:00:53]} 28. Kb2 {[%emt 0:00:06]} f6 {[%emt 0:01:05]} 29. gxf6+ {[%emt 0:00:27]} Nxf6 {[%emt 0:00:04]} 30. Be6 {[%emt 0:00:14]} h5 {[%emt 0:01:01]} 31. Bxd7 {[%emt 0:00:16]} Nexd7 {[%emt 0:00:07]} 32. Ne6+ {[%emt 0:00:29]} Kf7 {[%emt 0:00:02]} 33. Rg1 {[%emt 0:00:11]} Ne5 {[%emt 0:00:09]} 34. Rh3 {[%emt 0:00:28]} Nxe4 {[%emt 0:00:24]} 35. Ng5+ {[%emt 0:00:03]} Nxg5 {[%emt 0:00:02]} 36. Rxg5 {[%emt 0:00:03]} Kf6 {[%emt 0:00:03]} 37. Rhg3 {[%emt 0:00:05]} gxf5 {[%emt 0:00:05]} 38. Rxh5 {[%emt 0:00:02]} f4 {[%emt 0:00:02]} 39. Rg1 {[%emt 0:00:08]} f3 {[%emt 0:00:06]} 40. Rf1 {[%emt 0:00:07]} Rc4 {[%emt 0:00:05]} 41. Kb3 {[%emt 0:00:11]} Rf4 {[%emt 0:00:04]} 42. Rh8 {[%emt 0:00:02]} Kf7 {[%emt 0:00:03]} 43. Rh7+ {[%emt 0:00:20]} Ke6 {[%emt 0:00:03]} 44. Rh8 {[%emt 0:00:04]} f2 {[%emt 0:00:10]} 45. Rh2 {[%emt 0:00:08]} Ng4 {[%emt 0:00:02]} 46. Rg2 {[%emt 0:00:01]} Kf5 {[%emt 0:00:02]} 47. c4 {[%emt 0:00:06]} e5 {[%emt 0:00:02]} 48. Kc3 {[%emt 0:00:02]} Ne3 {[%emt 0:00:07]} 49. Rfxf2 {[%emt 0:00:05]} Nd1+ {[%emt 0:00:03]} 0-1

[Event "FIDE Online Quarter final-2020"]
[Site "Online"]
[Date "2020.08.29"]
[Round "4.2"]
[White "Balajayeva, Khanim"]
[Black "Sliwicka, Alicja"]
[Result "0-1"]
[ECO "B50"]
[WhiteElo "2202"]
[BlackElo "2158"]
[Annotator "ChessBase"]
[PlyCount "98"]
[EventDate "2020.08.28"]
[EventType "k.o."]
[SourceTitle "playchess.com"]
[Source "ChessBase"]
[SourceQuality "1"]
[TimeControl "900+5"]

1. e4 {[%emt 0:00:01]} c5 {[%emt 0:02:30]} 2. Nf3 {[%emt 0:00:02]} d6 {[%emt 0:00:58]} 3. c3 {[%emt 0:00:03]} Nf6 {[%emt 0:00:21]} 4. Bd3 {[%emt 0:00:02]} Bg4 {[%emt 0:02:14]} 5. Bc2 {[%emt 0:00:20]} Nc6 {[%emt 0:00:16]} 6. h3 {[%emt 0:00:05]} Bh5 {[%emt 0:00:06]} 7. d3 {[%emt 0:00:25]} e6 {[%emt 0:00:06]} 8. Nbd2 {[%emt 0:00:33]} Be7 {[%emt 0:00:07]} 9. Nf1 {[%emt 0:00:06]} d5 {[%emt 0:00:17]} 10. Ng3 {[%emt 0:01:03]} Bxf3 {[%emt 0:00:00]} 11. Qxf3 {[%emt 0:00:04]} Ne5 {[%emt 0:00:00]} 12. Qe2 {[%emt 0:00:12]} dxe4 {[%emt 0:00:00]} 13. dxe4 {[%emt 0:00:15]} h5 {[%emt 0:00:35]} 14. Ba4+ {[%emt 0:01:03]} Kf8 {[%emt 0:01:14]} 15. Bc2 {[%emt 0:01:07]} c4 {[%emt 0:00:29]} 16. O-O {[%emt 0:00:25]} h4 {[%emt 0:00:13]} 17. Rd1 {[%emt 0:00:25]} Qc7 {[%emt 0:00:30]} 18. Nf1 {[%emt 0:00:06]} Ng6 {[%emt 0:00:17]} 19. a4 {[%emt 0:00:37]} Rc8 {[%emt 0:00:07]} 20. a5 {[%emt 0:00:38]} Rh5 {[%emt 0:00:23]} 21. a6 {[%emt 0:00:21]} b6 {[%emt 0:00:06]} 22. Be3 {[%emt 0:00:28]} Bd6 {[%emt 0:00:33]} 23. Rd4 {[%emt 0:01:02]} Be5 {[%emt 0:00:11]} 24. Rd2 {[%emt 0:00:30]} Nf4 {[%emt 0:00:07]} 25. Bxf4 {[%emt 0:00:19]} Bxf4 {[%emt 0:00:01]} 26. Ne3 {[%emt 0:00:04]} Rc5 {[%emt 0:00:14]} 27. Rad1 {[%emt 0:00:21]} Qe7 {[%emt 0:00:58]} 28. Qf3 {[%emt 0:00:37]} g5 {[%emt 0:00:41]} 29. Rd4 {[%emt 0:00:23]} Kg7 {[%emt 0:00:38]} 30. Ng4 {[%emt 0:00:10]} R5c7 {[%emt 0:00:25]} 31. Nxf6 {[%emt 0:02:46]} Qxf6 {[%emt 0:00:00]} 32. Qg4 {[%emt 0:00:13]} Qe5 {[%emt 0:00:38]} 33. Rd8 {[%emt 0:00:22]} Qf6 {[%emt 0:00:45]} 34. Rxc8 {[%emt 0:00:21]} Rxc8 {[%emt 0:00:00]} 35. Qe2 {[%emt 0:00:01]} b5 {[%emt 0:00:30]} 36. Rd7 {[%emt 0:00:55]} Rc7 {[%emt 0:00:03]} 37. Qd1 {[%emt 0:00:04]} Be5 {[%emt 0:00:30]} 38. Rd8 {[%emt 0:00:30]} b4 {[%emt 0:00:21]} 39. cxb4 {[%emt 0:00:03]} Bxb2 {[%emt 0:00:08]} 40. b5 {[%emt 0:00:15]} Be5 {[%emt 0:00:06]} 41. Kf1 {[%emt 0:00:29]} c3 {[%emt 0:00:03]} 42. Ra8 {[%emt 0:00:09]} Bd4 {[%emt 0:00:06]} 43. Qe2 {[%emt 0:00:06]} Rd7 {[%emt 0:00:10]} 44. e5 {[%emt 0:00:06]} Qf4 {[%emt 0:00:11]} 45. f3 {[%emt 0:00:18]} Qc1+ {[%emt 0:00:03]} 46. Qd1 {[%emt 0:00:01]} Qe3 {[%emt 0:00:04]} 47. Qe1 {[%emt 0:00:03]} Qg1+ {[%emt 0:00:02]} 48. Ke2 {[%emt 0:00:01]} Qxg2+ {[%emt 0:00:02]} 49. Kd3 {[%emt 0:00:06]} Bf2+ {[%emt 0:00:02]} 0-1